bitfinex-derivatives/quotes_SOLF0:USTF0_20241217
["timestamp","ask_amount","ask_price","bid_price","bid_amount"]
[1734430002101,2.2435,222.9,222.88,12.92463708]
[1734430005305,2.2435,222.89,222.88,12.92463708]
[1734430006304,2.2435,222.89,222.88,2.2]
[1734430006605,2.2436,222.88,222.87,10.72463708]
[1734430007099,2.2436,222.88,222.87,15.38290744]
[1734430007405,10.72463708,222.97,222.85,2.2]
[1734430007602,1.4458,222.96,222.85,2.2]
[1734430007802,2.2,222.95,222.84,10.72463708]
[1734430008095,2.2,222.95,222.85,4.65899872]
[1734430008300,2.2,222.95,222.87,10.72463708]
[1734430008702,10.72463708,222.97,222.87,10.72463708]
[1734430010099,6.80466909,222.95,222.89,6.80466909]
[1734430010303,2.2,222.98,222.91,6.80466909]
[1734430010503,2.2432,222.92,222.91,6.80466909]
[1734430011097,4.4837,223.07,222.91,6.80466909]
[1734430011394,0.23047,223.02,222.95,6.80466909]
[1734430012300,2.2428,222.96,222.95,6.80466909]
[1734430012999,2.2429,222.95,222.94,2.2]
[1734430013200,2.2429,222.95,222.94,13.66996313]
[1734430013600,2.2429,222.96,222.94,13.66996313]
[1734430013800,2.2429,222.96,222.95,6.80466909]
[1734430014008,2.2429,222.96,222.94,2.2]
[1734430014807,2.2429,222.95,222.94,2.2]
[1734430016207,0.23047,223.02,222.94,2.2]
[1734430017011,0.23047,223.02,222.95,10.62595394]
[1734430017206,0.23047,223.02,222.98,10.62595394]
[1734430017406,0.23047,223.02,222.99,2.2]
[1734430020112,0.23047,223.02,223.0,2.2]
[1734430021314,0.23047,223.02,222.95,2.2]
[1734430021908,0.23047,223.02,222.93,1.5212]
[1734430022115,10.62595394,223.0,222.92,3.0996]
[1734430022307,10.62595394,223.0,222.91,2.2]
[1734430023018,10.62595394,223.0,222.87,3.1358]
[1734430023314,10.62595394,223.0,222.89,2.2]
[1734430023509,2.2434,222.9,222.89,2.2]
[1734430023709,12.82595394,222.97,222.87,3.1358]
[1734430023909,12.82595394,222.97,222.76,1.12213727]
[1734430024114,10.62595394,222.91,222.78,10.62595394]
[1734430024416,12.82595394,222.97,222.77,10.02425174]
[1734430024417,10.62595394,222.88,222.77,10.02425174]
[1734430024615,10.62595394,222.85,222.76,1.12213727]
[1734430024816,10.62595394,222.82,222.76,1.12213727]
[1734430025014,2.2,222.81,222.76,1.12213727]
[1734430025218,10.62595394,222.79,222.67,10.62595394]
[1734430025518,10.62595394,222.79,222.67,5.51242015]
[1734430025720,2.2453,222.72,222.67,5.51242015]
[1734430025917,2.9804,222.87,222.67,16.13837409]
[1734430026114,10.62595394,222.85,222.7,10.62595394]
[1734430026319,10.62595394,222.85,222.71,2.2]
[1734430026513,2.2,222.86,222.71,2.2]
[1734430026514,10.62595394,222.82,222.71,2.2]
[1734430026720,2.2,222.81,222.71,2.2]
[1734430027021,2.2443,222.82,222.76,10.62595394]
[1734430027221,2.2,222.86,222.76,10.62595394]
[1734430027422,2.2,222.86,222.77,2.2]
[1734430028413,2.2442,222.83,222.77,2.2]
[1734430029225,2.2,222.86,222.77,2.2]
[1734430029531,2.2443,222.82,222.77,2.2]
[1734430030530,2.2444,222.81,222.77,2.2]
[1734430031025,2.18,222.9,222.79,10.62595394]
[1734430031232,2.18,222.91,222.79,10.62595394]
[1734430031429,3.1247,222.95,222.82,10.62595394]
[1734430031633,1.5308,222.96,222.85,10.62595394]
[1734430031831,10.62595394,222.99,222.88,10.62595394]
[1734430032129,10.62595394,223.02,222.89,2.18]
[1734430032526,2.2429,222.96,222.89,2.18]
[1734430033033,2.2426,222.99,222.89,2.18]
[1734430033235,10.62595394,223.02,222.89,2.18]
[1734430034234,2.2427,222.98,222.91,2.2433]
[1734430034433,5.2292,223.04,222.91,10.62595394]
[1734430035323,2.2426,222.98,222.91,12.86925394]
[1734430036025,2.2422,223.03,222.91,10.62595394]
[1734430036225,12.15675394,223.07,222.91,10.62595394]
[1734430036830,2.2426,222.99,222.93,2.243]
[1734430037030,2.2426,222.99,222.94,2.18]
[1734430037333,2.2427,222.98,222.91,2.2433]
[1734430037538,2.2427,222.98,222.95,2.18]
[1734430038130,2.2427,222.97,222.95,2.18]
[1734430038931,10.62595394,223.04,222.95,2.18]
[1734430039931,3.0131,223.14,222.95,2.18]
[1734430040131,10.62595394,223.09,222.96,13.73085394]
[1734430040329,2.2421,223.03,222.96,5.3477]
[1734430040527,10.62595394,223.06,222.96,3.1049]
[1734430040728,10.62595394,223.06,222.97,2.18]
[1734430040934,2.2424,223.0,222.97,2.18]
[1734430042235,2.2423,223.02,222.97,2.18]
[1734430042437,10.62595394,223.06,222.97,2.18]
[1734430042732,2.2426,222.99,222.97,2.18]
[1734430044833,10.62595394,223.06,222.91,10.62595394]
[1734430045035,10.62595394,223.06,222.92,2.18]
[1734430045436,2.2428,222.97,222.92,4.4232]
[1734430045831,2.2428,222.97,222.92,2.2432]
[1734430046041,10.62595394,223.0,222.9,5.37670992]
[1734430046340,10.62595394,223.0,222.91,2.18]
[1734430047440,2.2431,222.94,222.91,2.18]
[1734430048042,10.62595394,223.0,222.91,2.18]
[1734430048239,2.2431,222.93,222.91,2.18]
[1734430048941,10.62595394,222.97,222.83,2.2441]
[1734430049140,10.62595394,222.94,222.84,2.18]
[1734430049342,10.62595394,222.94,222.83,2.18]
[1734430049839,10.62595394,222.97,222.83,7.5566529]
[1734430050040,6.8842,223.02,222.85,10.62595394]
[1734430050246,10.62595394,223.0,222.85,10.62595394]
[1734430050441,2.2431,222.94,222.88,2.2436]
[1734430050641,2.2431,222.94,222.89,2.18]
[1734430050836,2.2431,222.93,222.89,2.18]
[1734430051745,10.62595394,223.0,222.89,2.18]
[1734430051942,10.62595394,223.0,222.89,4.4235]
[1734430052150,10.62595394,223.0,222.89,2.18]
[1734430052847,10.62595394,223.0,222.85,10.62595394]
[1734430053044,6.8842,223.02,222.86,2.18]
[1734430053045,10.62595394,222.97,222.86,2.18]
[1734430053548,12.80595394,222.97,222.86,2.18]
[1734430053744,2.2436,222.89,222.86,2.18]
[1734430053947,12.80595394,222.97,222.85,2.18]
[1734430054143,10.62595394,222.94,222.85,2.18]
[1734430054354,10.62595394,222.91,222.82,2.18]
[1734430054846,2.2439,222.86,222.82,2.18]
[1734430055043,10.62595394,222.91,222.82,2.18]
[1734430055243,10.62595394,222.94,222.82,12.80595394]
[1734430055445,2.2435,222.9,222.84,2.244]
[1734430055651,10.62595394,222.97,222.85,10.62595394]
[1734430055850,12.80595394,223.0,222.88,10.62595394]
[1734430056051,12.80595394,223.0,222.89,2.18]
[1734430056651,18.14975844,223.0,222.89,2.18]
[1734430057252,2.2432,222.93,222.89,2.18]
[1734430058053,4.91369,223.02,222.9,2.2434]
[1734430058349,4.91369,223.02,222.89,2.18]
[1734430058743,4.91369,223.02,222.89,4.4235]
[1734430058943,1.80329,223.02,222.91,10.62595394]
[1734430059346,0.20949,223.02,222.9,1.5167]
[1734430059750,0.20949,223.02,222.94,10.62595394]
[1734430059949,2.2427,222.98,222.95,2.18]
[1734430060452,0.20949,223.02,222.95,2.18]
[1734430060651,0.20949,223.02,222.95,4.4229]
[1734430060652,2.2424,223.0,222.95,4.4229]
[1734430061844,0.20949,223.02,222.99,2.2425]
[1734430062049,0.20949,223.02,223.0,2.18]
[1734430062551,0.20949,223.02,222.98,2.18]
[1734430062750,0.20949,223.02,222.95,2.18]
[1734430062946,0.20949,223.02,222.96,10.62595394]
[1734430063146,0.20949,223.02,222.99,10.62595394]
[1734430063453,2.2419,223.06,223.0,4.4224]
[1734430063844,4.4804,223.23,223.05,10.62595394]
[1734430064047,5.50629356,223.19,223.06,2.18]
[1734430064252,10.62595394,223.18,223.06,2.18]
[1734430064446,2.241,223.15,223.06,2.18]
[1734430064647,12.80595394,223.18,223.06,2.18]
[1734430065353,2.241,223.15,223.06,2.18]
[1734430065556,12.80595394,223.18,223.06,2.18]
[1734430065745,10.62595394,223.18,223.06,2.18]
[1734430065950,10.62595394,223.18,223.07,2.2417]
[1734430066151,10.62595394,223.18,223.06,2.18]
[1734430066548,2.2414,223.1,223.06,2.18]
[1734430067657,2.2413,223.12,223.06,2.18]
[1734430068555,2.2413,223.11,223.06,9.67971235]
[1734430068956,10.62595394,223.21,223.08,10.62595394]
[1734430069252,2.2409,223.15,223.1,2.2414]
[1734430069458,2.2409,223.15,223.11,2.18]
[1734430070249,10.62595394,223.18,223.07,2.18]
[1734430071851,2.18,223.19,223.07,2.18]
[1734430071852,2.18,223.19,223.08,10.62595394]
[1734430072151,10.62595394,223.19,223.06,5.25791235]
[1734430072454,10.62595394,223.16,223.07,2.18]
[1734430072657,10.62595394,223.13,223.02,1.5849]
[1734430072857,10.62595394,223.13,223.03,2.18]
[1734430073053,2.2417,223.08,223.03,2.18]
[1734430073260,10.62595394,223.13,223.03,2.18]
[1734430074158,2.2417,223.08,223.03,2.18]
[1734430075857,10.62595394,223.19,223.06,12.86775394]
[1734430075858,2.2414,223.11,223.06,12.86775394]
[1734430076059,10.62595394,223.19,223.06,10.62595394]
[1734430076257,2.18,223.21,223.06,10.62595394]
[1734430076455,15.28375394,223.22,223.06,10.62595394]
[1734430077256,5.49033358,223.21,223.06,10.62595394]
[1734430077556,4.6578,223.22,223.09,10.62595394]
[1734430077860,4.6578,223.22,223.1,2.18]
[1734430078249,2.2408,223.17,223.11,2.2413]
[1734430078455,4.6578,223.22,223.11,2.2413]
[1734430079358,2.2408,223.17,223.11,2.2413]
[1734430081360,2.2409,223.16,223.11,2.2413]
[1734430081958,2.2407,223.17,223.12,12.86715394]
[1734430083263,2.2404,223.21,223.16,2.2408]
[1734430083457,13.72485394,223.29,223.17,2.18]
[1734430084353,13.72485394,223.29,223.19,2.2405]
[1734430084555,13.72485394,223.29,223.17,2.18]
[1734430084756,2.2401,223.23,223.17,2.18]
[1734430085153,13.72485394,223.29,223.13,10.62595394]
[1734430085154,10.62595394,223.26,223.13,10.62595394]
[1734430085352,10.62595394,223.26,223.11,4.5677]
[1734430085353,10.62595394,223.23,223.14,2.18]
[1734430085966,2.2406,223.19,223.14,2.18]
[1734430086458,2.2406,223.19,223.15,5.29237566]
[1734430086767,2.2407,223.18,223.15,5.29237566]
[1734430086953,2.2407,223.18,223.14,2.18]
[1734430086954,10.62595394,223.2,223.11,4.5677]
[1734430087164,10.62595394,223.2,223.12,2.18]
[1734430087457,2.241,223.15,223.12,2.18]
[1734430088062,10.62595394,223.27,223.14,10.62595394]
[1734430088961,10.62595394,223.27,223.15,3.102]
[1734430089162,10.62595394,223.27,223.15,4.6446]
[1734430089358,2.2402,223.23,223.19,2.2405]
[1734430089664,2.2402,223.23,223.2,2.18]
[1734430089867,3.0989,223.29,223.2,4.4204]
[1734430090068,3.0989,223.29,223.2,2.18]
[1734430091258,2.2401,223.24,223.19,2.2405]
[1734430091463,10.62595394,223.27,223.19,2.2]
[1734430092958,3.0989,223.29,223.19,2.2]
[1734430092959,10.62595394,223.24,223.19,2.2]
[1734430093165,10.62595394,223.24,223.11,10.62595394]
[1734430093463,2.2404,223.21,223.12,2.2]
[1734430093770,10.62595394,223.24,223.12,2.2]
[1734430093971,10.62595394,223.24,223.11,10.62595394]
[1734430094167,2.2408,223.17,223.13,2.2]
[1734430095466,2.2408,223.17,223.13,4.4411]
[1734430095771,2.2408,223.16,223.13,4.4411]
[1734430096066,2.2408,223.16,223.13,2.2]
[1734430097372,2.2413,223.12,223.09,4.5487]
[1734430097567,10.62595394,223.18,223.05,10.62595394]
[1734430097775,10.62595394,223.18,223.06,2.2]
[1734430098073,4.4795,223.27,223.11,10.62595394]
[1734430098272,10.62595394,223.25,223.12,2.2]
[1734430098972,2.2409,223.16,223.13,2.2411]
[1734430101472,10.62595394,223.25,223.13,2.2411]
[1734430101672,10.62595394,223.25,223.12,2.2]
[1734430102067,10.62595394,223.25,223.14,10.62595394]
[1734430102275,10.62595394,223.25,223.15,2.2409]
[1734430102975,2.2402,223.22,223.15,2.2409]
[1734430103275,10.62595394,223.25,223.15,2.2409]
[1734430103670,10.62595394,223.25,223.11,2.2413]
[1734430103868,10.62595394,223.22,223.12,2.2]
[1734430104068,10.62595394,223.19,223.06,10.62595394]
[1734430104267,10.62595394,223.19,223.08,2.2416]
[1734430104575,10.62595394,223.19,223.09,4.65414909]
[1734430104778,2.2412,223.13,223.08,2.2416]
[1734430104981,2.2412,223.13,223.09,2.2415]
[1734430105173,10.62595394,223.19,223.07,2.2]
[1734430105369,2.241,223.15,223.09,10.62595394]
[1734430105572,2.241,223.15,223.08,4.65763483]
[1734430105573,10.62595394,223.19,223.08,2.2415]
[1734430105775,10.62595394,223.19,223.09,4.65812927]
[1734430105979,2.2409,223.16,223.08,2.2415]
[1734430106175,10.62595394,223.19,223.08,2.2415]
[1734430106476,10.62595394,223.19,223.09,4.65709956]
[1734430107078,10.62595394,223.19,223.06,2.2418]
[1734430107277,10.62595394,223.16,223.07,4.66170358]
[1734430107577,10.62595394,223.1,223.0,2.2424]
[1734430107777,2.2421,223.04,223.0,2.2]
[1734430107979,12.82595394,223.1,222.94,4.4677]
[1734430108174,12.82595394,223.1,222.98,2.2]
[1734430108175,10.62595394,223.07,222.98,2.2]
[1734430108478,12.18145394,223.09,222.99,4.6663698]
[1734430108673,12.18145394,223.09,222.97,9.92133115]
[1734430108873,12.18145394,223.09,222.98,4.67190252]
[1734430109177,12.18145394,223.09,222.97,9.92133115]
[1734430109380,12.18145394,223.09,222.98,4.67145425]
[1734430109578,12.18145394,223.09,222.97,9.92133115]
[1734430109775,12.18145394,223.09,222.98,4.67202008]
[1734430109978,12.18145394,223.09,222.97,9.92133115]
[1734430110477,12.18145394,223.09,222.97,2.2]
[1734430110674,12.18145394,223.09,222.95,2.2429]
[1734430110675,2.2423,223.02,222.95,2.2429]
[1734430110977,2.2423,223.02,222.96,6.87147075]
[1734430111177,2.2423,223.02,222.96,4.4428]
[1734430111581,1.5484,223.08,222.96,2.2]
[1734430111776,1.5484,223.08,222.97,15.29359588]
[1734430112680,1.5484,223.08,222.97,10.62595394]
[1734430113072,2.242,223.05,222.98,2.2426]
[1734430113274,1.5484,223.08,222.98,6.9087342]
[1734430113481,1.5484,223.08,222.98,2.2426]
[1734430113781,2.2419,223.05,222.98,2.2426]
[1734430114470,1.5308,223.15,223.0,10.62595394]
[1734430114782,1.5308,223.15,223.01,2.2]
[1734430114975,2.2415,223.1,223.04,2.2419]
[1734430115170,1.5308,223.15,223.03,10.62595394]
[1734430115383,1.5285,223.18,223.06,10.62595394]
[1734430115675,4.4795,223.27,223.04,4.66244821]
[1734430115676,12.13345394,223.26,223.12,10.62595394]
[1734430115876,12.13345394,223.26,223.13,2.2]
[1734430116080,1.5075,223.26,223.15,2.2408]
[1734430116383,1.5075,223.26,223.13,2.2]
[1734430116679,2.2405,223.19,223.13,2.2]
[1734430117571,2.2404,223.21,223.13,2.2]
[1734430117775,1.5075,223.26,223.13,2.2]
[1734430118079,1.5075,223.26,223.16,2.2408]
[1734430119076,2.2403,223.21,223.14,2.2409]
[1734430119678,2.2403,223.21,223.15,2.2409]
[1734430120275,2.2403,223.21,223.16,2.2408]
[1734430122671,2.2403,223.21,223.17,2.2407]
[1734430122881,2.2403,223.21,223.18,2.18]
[1734430124873,1.5075,223.26,223.18,2.18]
[1734430125073,2.2402,223.22,223.18,2.18]
[1734430127181,2.2402,223.22,223.17,2.2407]
[1734430127484,2.2402,223.22,223.18,2.18]
[1734430127684,2.2401,223.23,223.18,4.4206]
[1734430127882,10.62595394,223.33,223.2,10.62595394]
[1734430128686,2.2393,223.31,223.26,2.2398]
[1734430129583,2.2393,223.31,223.26,9.7398]
[1734430130881,2.2393,223.31,223.26,20.36575394]
[1734430131086,2.2393,223.31,223.26,23.94575394]
[1734430131290,2.2393,223.31,223.26,27.52575394]
[1734430131584,2.2392,223.32,223.26,27.52575394]
[1734430131888,4.6633,223.37,223.27,2.2397]
[1734430132082,4.6633,223.37,223.26,25.28595394]
[1734430132286,2.2389,223.35,223.26,25.28595394]
[1734430132688,7.50717068,223.41,223.29,10.62595394]
[1734430132887,5.32717068,223.41,223.36,0.67]
[1734430133987,2.2387,223.37,223.36,0.67]
[1734430134188,2.18,223.38,223.26,14.66]
[1734430134389,10.62595394,223.3,223.26,14.66]
[1734430135493,2.2397,223.27,223.26,14.66]
[1734430135890,1.5697,223.27,223.26,14.66]
[1734430137393,0.8997,223.27,223.26,14.66]
[1734430137593,2.2396,223.28,223.26,14.66]
[1734430138688,10.62595394,223.3,223.26,14.66]
[1734430139293,2.2397,223.27,223.26,14.66]
[1734430139696,1.5697,223.27,223.26,14.66]
[1734430139894,12.19565394,223.27,223.26,10.5555]
[1734430140991,12.19565394,223.27,223.26,10.34601]
[1734430141190,14.37565394,223.27,223.26,10.34601]
[1734430141899,12.19565394,223.27,223.26,10.34601]
[1734430142393,1.5697,223.27,223.26,10.34601]
[1734430142591,0.8997,223.27,223.26,10.34601]
[1734430142796,11.52565394,223.27,223.26,10.34601]
[1734430145897,0.8997,223.27,223.26,10.34601]
[1734430147898,10.62595394,223.3,223.26,10.34601]
[1734430148404,2.2397,223.27,223.26,10.34601]
[1734430149400,1.5697,223.27,223.26,10.34601]
[1734430150800,0.8997,223.27,223.26,10.34601]
[1734430151506,0.8997,223.27,223.26,7.16]
[1734430151907,0.8997,223.27,223.26,11.63]
[1734430152108,13.52695394,223.36,223.26,11.63]
[1734430152305,13.52695394,223.36,223.28,0.67]
[1734430153214,2.2395,223.3,223.28,0.67]
[1734430153705,2.2395,223.3,223.29,3.58]
[1734430154507,2.2393,223.31,223.29,7.16]
[1734430154703,10.62595394,223.33,223.29,7.16]
[1734430155211,2.2394,223.3,223.29,13.05]
[1734430156411,10.62595394,223.33,223.29,13.05]
[1734430156612,2.2394,223.31,223.29,13.05]
[1734430157604,1.5694,223.3,223.29,13.05]
[1734430158511,13.52695394,223.36,223.29,13.05]
[1734430158709,2.2394,223.31,223.29,13.05]
[1734430158910,37.52654064,223.54,223.29,13.05]
[1734430158911,5.32717068,223.41,223.29,13.05]
[1734430159119,2.2386,223.38,223.33,2.2391]
[1734430159314,2.2386,223.38,223.33,4.4191]
[1734430160309,2.2385,223.39,223.33,4.4191]
[1734430161919,2.2387,223.38,223.33,4.4191]
[1734430163608,5.32717068,223.41,223.33,2.18]
[1734430163915,11.04866394,223.43,223.33,2.18]
[1734430164312,2.2384,223.41,223.36,2.2387]
[1734430164814,1.5684,223.41,223.36,2.2387]
[1734430165415,0.42271,223.43,223.32,10.62595394]
[1734430165613,11.04866394,223.43,223.33,2.18]
[1734430166419,2.2386,223.38,223.33,2.18]
[1734430166920,1.5686,223.38,223.33,2.18]
[1734430167413,1.5686,223.38,223.33,4.4191]
[1734430168120,2.2384,223.4,223.33,2.18]
[1734430168419,2.2384,223.4,223.39,0.67]
[1734430172119,9.01582599,223.4,223.39,0.67]
[1734430172319,2.2385,223.39,223.38,4.49]
[1734430172915,6.77742599,223.4,223.13,10.48504943]
[1734430172916,2.2394,223.3,223.13,10.48504943]
[1734430173116,2.2394,223.3,223.25,8.95742599]
[1734430173417,2.2394,223.3,223.25,6.77742599]
[1734430173615,1.5694,223.3,223.26,6.65]
[1734430174219,1.5694,223.3,223.28,3.96]
[1734430175118,2.2392,223.32,223.31,0.67]
[1734430176520,5.9191,223.42,223.31,0.67]
[1734430176521,2.2389,223.36,223.31,0.67]
[1734430176720,1.4424,223.42,223.32,2.18]
[1734430177424,10.59550039,223.41,223.31,2.85]
[1734430177822,10.59550039,223.41,223.28,3.96]
[1734430177823,21.19100078,223.32,223.26,2.1397]
[1734430178122,10.59550039,223.27,223.1,5.79585075]
[1734430178321,2.2417,223.07,223.01,10.59550039]
[1734430178525,2.2417,223.07,223.02,4.68221243]
[1734430178717,2.18,223.14,223.02,4.68221243]
[1734430178917,2.2417,223.08,223.02,4.68221243]
[1734430179227,2.18,223.14,223.09,0.67]
[1734430179429,2.2413,223.12,223.09,0.67]
[1734430179629,2.18,223.14,223.09,0.67]
[1734430182129,2.2414,223.11,223.09,0.67]
[1734430183331,10.59550039,223.12,223.04,3.6611]
[1734430183526,10.59550039,223.15,223.04,3.6611]
[1734430183728,12.79550039,223.19,223.04,14.25660039]
[1734430183928,10.59550039,223.19,223.04,14.25660039]
[1734430184226,2.2408,223.16,223.04,14.25660039]
[1734430184428,10.59550039,223.19,223.04,14.25660039]
[1734430184625,2.2,223.21,223.04,14.25660039]
[1734430184626,10.59550039,223.16,223.04,14.25660039]
[1734430185226,2.2412,223.12,223.04,16.49860039]
[1734430185624,1.5712,223.12,223.04,5.9031]
[1734430186332,1.5712,223.12,223.05,2.2419]
[1734430186727,1.5712,223.12,223.05,4.4419]
[1734430186932,10.59550039,223.16,223.05,2.2]
[1734430186933,2.2413,223.11,223.05,2.2]
[1734430187129,1.5713,223.11,223.05,2.2]
[1734430187531,2.2414,223.1,223.05,2.2]
[1734430188033,2.2413,223.11,223.05,2.2]
[1734430188230,10.59550039,223.16,223.05,2.2]
[1734430188539,10.59550039,223.16,223.12,0.67]
[1734430188726,12.83660039,223.13,223.12,0.67]
[1734430190731,10.59550039,223.13,223.05,2.2]
[1734430190929,2.2417,223.08,223.05,2.2]
[1734430191233,2.2417,223.08,223.05,8.51]
[1734430191534,2.2418,223.06,223.05,6.31]
[1734430194242,2.2418,223.06,223.05,10.1]
[1734430194837,10.59550039,223.07,223.05,10.1]
[1734430195031,2.2417,223.08,223.05,10.1]
[1734430195229,10.59550039,223.1,223.07,0.67]
[1734430195829,2.2415,223.09,223.07,0.67]
[1734430196139,10.59550039,223.13,223.07,0.67]
[1734430196639,2.2414,223.11,223.07,0.67]
[1734430199141,2.2414,223.11,223.05,13.789]
[1734430200537,1.5714,223.11,223.05,11.5471]
[1734430200735,1.5714,223.11,223.06,2.2418]
[1734430201241,1.5714,223.11,223.07,3.58]
[1734430202043,0.9014,223.11,223.07,3.58]
[1734430202734,10.59550039,223.13,223.07,3.58]
[1734430203138,10.59550039,223.3,223.07,3.58]
[1734430203139,10.59550039,223.19,223.07,3.58]
[1734430203337,10.59550039,223.19,223.14,0.67]
[1734430203538,10.59550039,223.22,223.14,0.67]
[1734430203945,2.2409,223.16,223.14,0.67]
[1734430204541,2.2409,223.15,223.14,0.67]
[1734430205540,10.59550039,223.17,223.14,0.67]
[1734430206446,2.2408,223.16,223.14,0.67]
[1734430207336,2.2408,223.16,223.1,4.4414]
[1734430207943,2.2409,223.15,223.1,4.4414]
[1734430208140,5.4547485,223.23,223.08,1.5864]
[1734430208345,10.59550039,223.2,223.09,6.68]
[1734430208648,2.2409,223.16,223.11,2.2413]
[1734430209045,1.5709,223.16,223.11,2.2413]
[1734430209345,1.5709,223.16,223.09,6.68]
[1734430209346,2.2404,223.2,223.16,2.2408]
[1734430209543,12.79550039,223.26,223.14,2.2]
[1734430210046,2.2405,223.2,223.15,3.7166]
[1734430210447,1.5705,223.2,223.16,4.4408]
[1734430211547,1.5705,223.2,223.17,3.58]
[1734430211944,0.9005,223.2,223.17,3.58]
[1734430212741,0.9005,223.2,223.17,4.58]
[1734430213344,0.2305,223.2,223.17,4.58]
[1734430213649,5.2717352,223.24,223.17,8.76]
[1734430214058,2.2403,223.21,223.17,8.76]
[1734430214844,10.59550039,223.26,223.17,8.76]
[1734430215054,10.59550039,223.29,223.17,10.2562]
[1734430216248,2.18,223.31,223.18,10.59550039]
[1734430217250,0.31817,223.32,223.21,10.59550039]
[1734430217449,10.59550039,223.35,223.32,0.35183]
[1734430217655,2.239,223.34,223.32,0.35183]
[1734430217953,2.18,223.37,223.32,0.35183]
[1734430218355,10.59550039,223.38,223.32,0.35183]
[1734430219059,2.2387,223.37,223.32,2.59103]
[1734430219265,10.59550039,223.41,223.32,0.35183]
[1734430219856,5.40546138,223.4,223.32,0.35183]
[1734430220056,10.59550039,223.41,223.33,2.2391]
[1734430220257,10.59550039,223.41,223.33,4.4191]
[1734430220457,10.59550039,223.41,223.34,3.58]
[1734430220757,10.59550039,223.41,223.34,7.56]
[1734430220953,15.85852439,223.41,223.34,7.56]
[1734430221261,2.2387,223.38,223.34,7.56]
[1734430223056,15.85852439,223.41,223.34,7.56]
[1734430224460,2.2386,223.39,223.34,7.56]
[1734430224863,15.85852439,223.41,223.34,7.56]
[1734430225054,2.2385,223.39,223.34,7.56]
[1734430225456,1.6985,223.39,223.34,7.56]
[1734430225962,15.85852439,223.41,223.34,7.56]
[1734430226160,2.2385,223.39,223.34,7.56]
[1734430226760,2.2384,223.4,223.34,9.799]
[1734430227862,10.59550039,223.41,223.34,7.56]
[1734430228068,10.59550039,223.44,223.34,7.56]
[1734430228967,2.2378,223.47,223.4,2.2383]
[1734430229169,10.59550039,223.5,223.41,2.18]
[1734430230169,16.06514992,223.5,223.41,2.18]
[1734430230359,2.2377,223.48,223.42,2.2382]
[1734430231567,2.2377,223.48,223.43,2.18]
[1734430233869,2.2375,223.49,223.43,4.4181]
[1734430234571,2.2376,223.48,223.43,4.4181]
[1734430234870,2.2376,223.48,223.41,1.531]
[1734430235070,2.2376,223.48,223.42,4.4182]
[1734430235371,5.39118924,223.51,223.38,3.092]
[1734430235673,10.59550039,223.43,223.38,11.592]
[1734430235969,2.2383,223.42,223.38,8.5]
[1734430236163,10.59550039,223.43,223.38,8.5]
[1734430238075,2.2383,223.41,223.38,8.5]
[1734430238773,2.2383,223.41,223.38,16.0]
[1734430239765,2.2385,223.4,223.38,20.12]
[1734430240768,2.2385,223.39,223.38,20.12]
[1734430244171,10.59550039,223.4,223.28,2.18]
[1734430244374,10.59550039,223.36,223.26,2.18]
[1734430244866,2.18,223.37,223.26,2.18]
[1734430244867,10.59550039,223.33,223.26,2.18]
[1734430245265,10.59550039,223.33,223.26,6.1]
[1734430245466,10.59550039,223.33,223.26,20.63]
[1734430245971,2.2396,223.29,223.26,20.63]
[1734430246366,10.59550039,223.33,223.26,20.63]
[1734430246568,2.2394,223.31,223.26,20.63]
[1734430247175,10.59550039,223.36,223.26,20.63]